[Event "Italian-ch Teams-B 2022"]
[Site "Montesilvano"]
[Date "2022.04.19"]
[Round "1.2"]
[White "Formento, Paolo"]
[Black "Godena, Michele"]
[Result "0-1"]
[ECO "D25"]
[WhiteElo "2359"]
[BlackElo "2442"]
[Annotator "TA"]
[PlyCount "77"]
[EventDate "2022.04.19"]
[EventType "team-tourn"]
[EventCountry "ITA"]
[SourceTitle "playchess.com"]
[Source "ChessBase"]
[SourceQuality "1"]
[TimeControl "40/5400+30:1800+30"]

{[%evp 12,77,29,38,42,16,15,14,28,28,39,26,33,20,29,33,18,23,32,23,41,7,10,10,10,-9,0,-10,0,-6,0,-38,-34,-70,-16,-15,-17,-19,-19,-107,-100,-100,-100,-535,-532,-505,-399,-386,-224,-217,-203,-257,-8,-8,-8,-8,-8,-8,0,0,0,-8,-8,-41,0,0,0,-200]} 1. d4 {[%emt 0:00:05]} d5 {[%emt 0:00:08]} 2. c4 {[%emt 0:00:23]} dxc4 {[%emt 0:00:26]} 3. Nf3 {[%emt 0:00:23]} Nf6 {[%emt 0:00:49]} 4. e3 {[%emt 0:00:12]} Bg4 {[%emt 0:13:52]} 5. Bxc4 {[%emt 0:00:28]} e6 {[%emt 0:00:08]} 6. Nc3 {[%emt 0:02:14]} Nbd7 {[%emt 0:01:52]} 7. O-O {[%emt 0:04:38]} Bb4 {[%emt 0:03:37] D25: Queen's Gambit Accepted: 4 e3: sidelines and 4...Bg4.} 8. h3 {[%emt 0:06:50]} Bh5 {[%emt 0:01:42]} 9. Qb3 {[%emt 0:12:50]} Bxc3 {[%emt 0:13:56]} 10. bxc3 {[%emt 0:00:57]} Bxf3 {[%emt 0:00:23]} 11. gxf3 {[%emt 0:00:07]} Rb8 {[%emt 0:04:08] [#]} 12. a4 $146 {[%emt 0:16:52]} ({Predecessor:} 12. Ba3 c5 13. dxc5 O-O 14. Qa4 Qc7 15. Bb5 Rfc8 16. Rfd1 Nxc5 17. Qxa7 Nd5 18. c4 Nxe3 19. Bxc5 Nxd1 20. Rxd1 {1-0 (33) Figura,A (2394)-Wierzbicki,J (2160) Berlin 2019}) 12... O-O {[%emt 0:04:25]} 13. a5 {[%emt 0:20:38]} c5 {[%emt 0:10:32]} 14. f4 {[%emt 0:15:37]} Qc7 {[%emt 0:20:14]} 15. Be2 {[%emt 0:04:38]} Qc6 {[%emt 0:13:28]} 16. Qd1 {[%emt 0:03:48]} Ne4 {[%emt 0:02:24]} 17. Bf3 {[%emt 0:02:14]} f5 {[%emt 0:00:04]} 18. Qd3 {[%emt 0:02:25]} Ndf6 {[%emt 0:01:44]} 19. Ba3 {[%emt 0:01:10]} Rfd8 {[%emt 0:01:40]} 20. Kh2 {[%emt 0:02:56]} Rbc8 {[%emt 0:01:09]} 21. Rab1 {[%emt 0:00:34]} Qa4 {[%emt 0:00:49][%csl LRa3,LRa5]} 22. c4 {[%emt 0:00:46]} cxd4 {[%emt 0:00:56] &Nero is more active.} ({Black should try} 22... Qxa5 $15 23. Kg2 (23. Rxb7 $2 Nd2 $19) 23... Rd7) 23. Be7 $11 {[%emt 0:00:27] This bishop pair is nice.} Rd7 {[%emt 0:01:33]} 24. Bxf6 {[%emt 0:00:21]} Nxf6 {[%emt 0:00:37]} 25. Rxb7 {[%emt 0:00:53]} (25. Rfc1 $11) 25... Rxb7 $17 {[%emt 0:01:24]} ({Reject} 25... Rxc4 $6 26. Rfb1 $11) 26. Bxb7 {[%emt 0:00:02]} Qxc4 {[%emt 0:00:53]} 27. Qxd4 {[%emt 0:00:52][%mdl 8192]} Qxf1 $19 {[%emt 0:00:27]} 28. Bxc8 {[%emt 0:00:01]} Qxf2+ {[%emt 0:00:05]} 29. Kh1 {[%emt 0:00:01]} Kf7 {[%emt 0:00:57]} (29... Qf3+ $142 30. Kg1 Qc6 31. Qd8+ Kf7) 30. Qxa7+ {[%emt 0:01:00]} Kg6 {[%emt 0:00:01]} 31. Bxe6 {[%emt 0:00:57]} Qe1+ $2 {[%emt 0:00:54]} ({Resist} 31... Ne4 {[#]} 32. Bxf5+ $1 {[%mdl 512]} Kxf5 33. Qd7+ Kg6 34. Qe8+ Kh6 35. Qxe4 $16) ({Black should play} 31... Kh6 $19 {( -> ...Nh5)} 32. Qb6 (32. Bxf5 {is a self mate.} Nh5 33. Qb6+ g6) 32... g6) 32. Kg2 $11 {[%emt 0:00:10]} Qe2+ {[%emt 0:00:14]} 33. Kg1 $1 {[%emt 0:00:22]} Qd1+ {[%emt 0:00:24]} 34. Kg2 {[%emt 0:00:26]} Qd2+ {[%emt 0:00:51]} 35. Kf3 {[%emt 0:00:53]} Qd1+ {[%emt 0:00:23]} 36. Kg2 {[%emt 0:00:04]} Qc2+ {[%emt 0:00:19]} 37. Kf1 {[%emt 0:01:08]} Ne4 {[%emt 0:00:53][%csl Ge4][%cal Rc2f2] [#]} 38. Bxf5+ $1 {[%emt 0:00:37]} Kxf5 {[%emt 0:00:04][%csl Ge4][%cal Rc2f2] Really sharp!} 39. Qd7+ $2 {[%emt 0:00:00] Whites escaped into a draw.  Weighted Error Value: White=0.40/Black=0.30} (39. Qf7+ $11 {and White is okay.} Nf6 40. Qxg7) 0-1

[Event "Italian-ch Teams-B 2022"]
[Site "Montesilvano"]
[Date "2022.04.19"]
[Round "1.2"]
[White "Borgo, Giulio"]
[Black "Genocchio, Daniele"]
[Result "1/2-1/2"]
[ECO "C15"]
[WhiteElo "2345"]
[BlackElo "2358"]
[Annotator "TA"]
[PlyCount "108"]
[EventDate "2022.04.19"]
[EventType "team-tourn"]
[EventCountry "ITA"]
[SourceTitle "playchess.com"]
[Source "ChessBase"]
[SourceQuality "1"]
[TimeControl "40/5400+30:1800+30"]

{[%evp 13,108,10,21,7,25,19,29,-12,-20,-51,-49,-53,-52,-40,0,-6,21,26,25,0,15,9,23,33,29,29,29,21,70,13,25,26,26,29,43,45,50,44,112,29,29,15,19,12,12,12,27,0,0,0,0,0,0,0,0,0,0,0,0,0,0,0,0,-2,0,-18,-7,-11,0,0,0,0,0,0,0,0,0,0,0,0,0,0,0,0,0,0,0,0,0,0,0,0,0,0,0,-576,0]} 1. e4 {[%emt 0:00:17]} e6 {[%emt 0:05:43]} 2. d4 {[%emt 0:01:35]} d5 {[%emt 0:00:07]} 3. Nc3 {[%emt 0:01:24]} Bb4 {[%emt 0:00:25]} 4. Nge2 {[%emt 0:01:23]} dxe4 {[%emt 0:04:21]} 5. a3 {[%emt 0:00:23]} Be7 {[%emt 0:00:23]} 6. Nxe4 {[%emt 0:00:32]} Nf6 {[%emt 0:02:41]} 7. Nxf6+ $1 {[%emt 0:02:46][%mdl 4] outshines the older 7.N2g3.} Bxf6 {[%emt 0:01:55]} 8. Be3 {[%emt 0:00:06] C15: French: 3 Nc3 Bb4: Unusual White 4th moves.} O-O {[%emt 0:03:15]} 9. Qd2 {[%emt 0:02:10]} Nc6 {[%emt 0:39:49][%cal Bb8c6,Bc6a5,Ba5c4][%mdl 32]} 10. f4 {[%emt 0:21:22] [#] White has an edge.} Qd5 $146 {[%emt 0:05:14]} ({Predecessor:} 10... b5 11. Nc3 a6 12. O-O-O b4 13. axb4 Nxb4 14. Ne4 a5 15. c3 {½-½ (15) Kadric,D (2509)-Kanakaris,G (2399) Veliko Gradiste 2018}) 11. c3 {[%emt 0:45:57]} Na5 {[%emt 0:07:04] White must now prevent ...Nb3.} 12. Qc2 {[%emt 0:01:45]} Nc4 {[%emt 0:00:54]} 13. Bf2 {[%emt 0:01:57]} b6 {[%emt 0:08:48]} 14. Ng3 {[%emt 0:01:38]} Be7 {[%emt 0:11:56]} 15. Be2 {[%emt 0:05:39] aiming for Bf3.} Rb8 {[%emt 0:00:29]} 16. Bf3 {[%emt 0:00:37]} Qd7 {[%emt 0:00:56]} 17. O-O {[%emt 0:00:43]} Bb7 {[%emt 0:01:31]} 18. Bxb7 {[%emt 0:01:32]} Rxb7 {[%emt 0:00:03]} 19. f5 {[%emt 0:00:33]} exf5 {[%emt 0:02:52]} 20. Nxf5 {[%emt 0:02:21]} Bf6 {[%emt 0:01:31]} (20... Re8 $11 {deserves consideration.}) 21. Rae1 {[%emt 0:02:55]} (21. Bg3 $14) 21... Nd6 {[%emt 0:00:31]} 22. Nxd6 {[%emt 0:02:06]} cxd6 {[%emt 0:00:17]} 23. Bg3 {[%emt 0:00:26]} Rbb8 {[%emt 0:00:40]} 24. Qf5 {[%emt 0:00:41]} Rbd8 {[%emt 0:00:26]} 25. Qd5 {[%emt 0:00:55]} Rfe8 {[%emt 0:00:34] [#]} (25... h6 $14) 26. h3 {[%emt 0:00:41] &Bianco is more active.} (26. Qxd6 $1 $16 {[%mdl 512]} Qb5 (26... Rxe1 27. Rxe1) 27. Qb4) 26... Re6 {[%emt 0:00:23]} 27. Re4 {[%emt 0:01:03]} Rxe4 {[%emt 0:00:16]} 28. Qxe4 {[%emt 0:00:02]} d5 {[%emt 0:00:12]} 29. Qf5 {[%emt 0:00:41]} Qe6 {[%emt 0:00:19]} 30. Qf3 {[%emt 0:00:43]} b5 {[%emt 0:00:53]} 31. Re1 {[%emt 0:00:11]} Qd7 {[%emt 0:00:06]} 32. Re2 {[%emt 0:00:43]} Rc8 {[%emt 0:00:50]} 33. Be5 {[%emt 0:00:18]} Be7 {[%emt 0:01:03]} 34. Bf4 {[%emt 0:00:25]} Bf6 {[%emt 0:00:09]} 35. Be5 {[%emt 0:00:35]} Be7 {[%emt 0:00:09]} 36. Bg3 {[%emt 0:00:50]} Bf6 {[%emt 0:00:29]} 37. Kf2 {[%emt 0:00:20]} h6 {[%emt 0:00:23]} 38. Qh5 {[%emt 0:00:36]} Rc6 {[%emt 0:00:28]} 39. Ke1 {[%emt 0:00:36]} Re6 {[%emt 0:00:58]} 40. Be5 {[%emt 0:00:10]} Bxe5 {[%emt 0:00:55]} 41. Rxe5 $11 {[%emt 0:30:47][%mdl 4096] Endgame KQR-KQR} f6 {[%emt 0:24:35]} 42. Re2 {[%emt 0:00:00]} Rxe2+ {[%emt 0:00:16]} 43. Qxe2 {[%emt 0:00:00] KQ-KQ} a6 {[%emt 0:01:19]} 44. a4 {[%emt 0:00:00]} Kf7 {[%emt 0:01:15]} 45. axb5 {[%emt 0:00:00]} Qxb5 {[%emt 0:02:27]} 46. Qc2 {[%emt 0:00:00]} g6 {[%emt 0:01:26]} 47. Kf2 {[%emt 0:00:00]} Qb8 {[%emt 0:00:51]} 48. Kf3 {[%emt 0:00:42]} Qb5 {[%emt 0:00:19]} 49. Kf2 {[%emt 0:00:10]} Qb8 {[%emt 0:00:04]} 50. Qd2 {[%emt 0:02:58]} f5 {[%emt 0:01:13]} 51. b4 {[%emt 0:00:30]} g5 {[%emt 0:00:35]} 52. g3 {[%emt 0:01:05]} Qe8 {[%emt 0:01:34]} 53. Qd3 {[%emt 0:00:35]} Qe4 {[%emt 0:00:01]} 54. Qf3 {[%emt 0:00:35][%mdl 8192] [#]} (54. Qxa6 $11 {and White stays safe.} Qc2+ 55. Kg1) 54... Qc2+ $2 {[%emt 0:00:21] Weighted Error Value: White=0.25 (precise) /Black=0.06 (flawless)} (54... Qxf3+ $1 $19 55. Kxf3 Ke6) 1/2-1/2

[Event "Italian-ch Teams-B 2022"]
[Site "Montesilvano"]
[Date "2022.04.19"]
[Round "1.2"]
[White "Boraso, Alessio"]
[Black "Shytaj, Luca"]
[Result "0-1"]
[ECO "B31"]
[WhiteElo "2286"]
[BlackElo "2460"]
[Annotator "TA"]
[PlyCount "74"]
[EventDate "2022.04.19"]
[EventType "team-tourn"]
[EventCountry "ITA"]
[SourceTitle "playchess.com"]
[Source "ChessBase"]
[SourceQuality "1"]
[TimeControl "40/5400+30:1800+30"]

{[%evp 10,74,7,0,0,0,0,-7,-9,-20,-4,-9,35,37,78,70,64,0,0,0,0,0,0,0,1,-12,-16,-110,-22,-103,-115,-164,-162,-162,-162,-162,-168,-155,-166,-170,-175,-175,-170,-187,-172,-188,-188,-190,-184,-177,-165,-254,-252,-252,-249,-300,-314,-350,-334,-502,-493,-735,-742,-717,-685,-649,-615]} 1. e4 {[%emt 0:00:03]} c5 {[%emt 0:00:12]} 2. Nf3 {[%emt 0:00:13]} Nc6 {[%emt 0:00:17]} 3. Bb5 {[%emt 0:00:11][%cal Bf1b5,Bb5a4,Ba4b3,Bb3a2][%mdl 32]} g6 {[%emt 0:00:15]} 4. O-O {[%emt 0:01:27]} Bg7 {[%emt 0:00:27]} 5. Nc3 {[%emt 0:00:13]} Nd4 {[%emt 0:07:15]} 6. Ba4 {[%emt 0:01:39]} Qa5 {[%emt 0:10:50] B31: Sicilian: 2...Nc6 3 Bb5 g6.} 7. a3 {[%emt 0:14:00][%cal Ob2b4]} b5 {[%emt 0:14:58]} 8. b4 {[%emt 0:16:02]} Qd8 {[%emt 0:05:11] The position is equal.} 9. Bb3 {[%emt 0:04:19]} c4 {[%emt 0:04:54]} 10. Ba2 {[%emt 0:02:23]} Bb7 {[%emt 0:06:27]} (10... d5 $5 {[%cal Rc8g4]}) 11. Bb2 {[%emt 0:04:14] [#]} Rc8 $146 {[%emt 0:18:13][%cal Ob7e4]} ({Predecessor:} 11... e6 12. Nxb5 Nxf3+ 13. Qxf3 Bxb2 14. Nd6+ Ke7 15. Nxb7 Qc7 16. Rab1 Be5 17. Na5 Bxh2+ {1-0 (44) Handke,F (2455)-Lisanti,A (2300) Germany 2000}) 12. Nxd4 {[%emt 0:07:58]} (12. d3 {seems wilder.} Nxf3+ 13. Qxf3 Be5 14. a4) 12... Bxd4 {[%emt 0:00:04]} 13. Qc1 {[%emt 0:00:15]} (13. d3 $1 $14) 13... Qb6 {[%emt 0:06:32]} 14. Nxb5 {[%emt 0:06:43]} Bxb2 {[%emt 0:00:10]} 15. Qxb2 {[%emt 0:00:09]} Nf6 {[%emt 0:00:19]} 16. a4 {[%emt 0:06:38] With the idea d3.} Bxe4 {[%emt 0:02:16]} 17. Rfe1 {[%emt 0:04:09][%cal Oe1e4] [#] Black must now prevent Rxe4!} O-O {[%emt 0:01:37]} 18. Qe5 {[%emt 0:03:47]} (18. Na3 $11 {remains equal.}) 18... a6 {[%emt 0:03:00]} (18... Bxc2 $17 19. a5 Qb7) 19. Nc3 {[%emt 0:05:43]} (19. Qd4 $1 $11 {keeps the balance.} Qb8 20. Nc3) 19... Bxc2 $17 {[%emt 0:01:29][%cal Od7d5] &Nero is more active. White is on the road to losing.} 20. a5 {[%emt 0:04:36]} (20. b5 $17) 20... Qxb4 $19 {[%emt 0:01:44][%cal Od7d5]} 21. Qxe7 {[%emt 0:01:57]} Qxe7 {[%emt 0:00:10]} 22. Rxe7 {[%emt 0:00:02]} d5 {[%emt 0:02:05]} 23. Rc1 {[%emt 0:02:06]} Bf5 {[%emt 0:01:24]} 24. Ra7 {[%emt 0:00:31]} Ra8 {[%emt 0:01:01]} 25. Rxa8 {[%emt 0:03:54]} Rxa8 {[%emt 0:00:03]} 26. f3 {[%emt 0:00:09]} Rb8 {[%emt 0:02:22] aiming for ...Rb2.} 27. g4 {[%emt 0:04:26] [#]} Be6 {[%emt 0:01:17] Threatens to win with ...Rb2.} 28. Rb1 {[%emt 0:00:33] Against Rb2} Nd7 {[%emt 0:01:18]} 29. Kf2 {[%emt 0:00:29]} Kf8 {[%emt 0:01:25]} 30. Ke3 {[%emt 0:01:57]} (30. d3 {might work better.}) 30... Ke7 {[%emt 0:00:55]} 31. d3 {[%emt 0:02:13]} Rxb1 {[%emt 0:01:19]} 32. Nxb1 {[%emt 0:00:59]} cxd3 {[%emt 0:01:04][%cal Od5d4] ...d4+! is the strong threat.} 33. Kxd3 {[%emt 0:01:46] KBN-KBN} Ne5+ {[%emt 0:00:23]} 34. Kd4 {[%emt 0:01:04]} (34. Ke2 {was necessary.}) 34... Kd6 {[%emt 0:00:31] Black is clearly winning.} 35. Ke3 {[%emt 0:00:41]} (35. f4 $142 Nc6+ 36. Kc3) 35... d4+ {[%emt 0:00:15]} 36. Kxd4 {[%emt 0:00:05]} Bxa2 {[%emt 0:00:14]} 37. Nc3 {[%emt 0:00:06]} Nc6+ {[%emt 0:00:14] Weighted Error Value: White=0.36/Black=0.11 (very precise)} 0-1

[Event "Italian-ch Teams-B 2022"]
[Site "Montesilvano"]
[Date "2022.04.19"]
[Round "1.3"]
[White "Ortega, Lexy"]
[Black "Bifulco, Michel"]
[Result "0-1"]
[ECO "D27"]
[WhiteElo "2429"]
[BlackElo "2274"]
[Annotator "TA"]
[PlyCount "54"]
[EventDate "2022.04.19"]
[EventType "team-tourn"]
[EventCountry "ITA"]
[SourceTitle "playchess.com"]
[Source "ChessBase"]
[SourceQuality "1"]
[TimeControl "40/5400+30:1800+30"]

{[%evp 15,54,6,4,0,7,0,3,0,6,-23,-13,-11,-19,-143,-135,-279,-268,-264,-263,-426,-230,-276,-263,-767,-607,-677,-678,-672,-667,-657,-646,-683,-682,-674,-672,-863,-855,-845,-828,-1652,-1114]} 1. d4 {[%emt 0:00:04]} d5 {[%emt 0:00:09]} 2. Nf3 {[%emt 0:00:09]} Nf6 {[%emt 0:00:10]} 3. c4 {[%emt 0:00:07]} dxc4 {[%emt 0:00:09]} 4. e3 {[%emt 0:01:19]} a6 {[%emt 0:00:11]} 5. Bxc4 {[%emt 0:00:36]} b5 {[%emt 0:00:09]} 6. Bb3 {[%emt 0:07:40]} Bb7 {[%emt 0:00:12]} 7. Nc3 {[%emt 0:00:03]} e6 {[%emt 0:00:14]} 8. O-O {[%emt 0:00:13]} c5 {[%emt 0:00:28]} 9. e4 {[%emt 0:01:30] D27: Queen's Gambit Accepted: Classical main line: 7 e4!? and 7 a4.} cxd4 {[%emt 0:03:11]} 10. Nxd4 {[%emt 0:00:19]} Nbd7 {[%emt 0:01:52]} 11. Re1 {[%emt 0:13:23] With the idea e5. The position is equal.} Ne5 {[%emt 0:01:50]} 12. Nd5 {[%emt 0:18:08][%cal Oc1f4]} Bc5 {[%emt 0:15:02] Strongly threatening ...0-0.} ({Much less strong is} 12... exd5 13. exd5 Bd6 14. Nf3 $11 (14. f4 Nxd5 15. fxe5 Bb4 $11)) 13. Bf4 {[%emt 0:17:56]} Nfd7 {[%emt 0:03:27] [#] aiming for ...0-0.} 14. Bxe5 $146 {[%emt 0:22:25]} ({Much worse is} 14. Rc1 Rc8 15. Bxe5 Nxe5 16. Rxc5 Rxc5 $17) (14. Nf3 $11 Nxf3+ 15. Qxf3) ({Predecessor:} 14. Rc1 Rc8 15. Nc3 Qh4 16. Bg3 Qf6 17. Nf3 Nxf3+ 18. Qxf3 Qxf3 19. gxf3 {½-½ (113) Narciso Dublan,M (2511)-Stefanova,A (2548) Barcelona 2008}) 14... Nxe5 $17 {[%emt 0:00:20][%cal Bd7e5,Be5g6,Bg6f4,Bf4d3][%mdl 32]} 15. Nxe6 {[%emt 0:01:25]} (15. Rc1 $17 Qd6 16. Nf3 (16. f4 Nc4 $17) 16... Nxf3+ 17. Qxf3) 15... fxe6 $19 {[%emt 0:07:56]} 16. Qh5+ {[%emt 0:00:03]} Ng6 {[%emt 0:07:48]} 17. Nf4 $2 {[%emt 0:01:43] [#]} (17. Nf6+ Qxf6 18. Qxc5) 17... Qf6 $1 {[%emt 0:05:13]} 18. Qxc5 {[%emt 0:09:31]} (18. Rf1 Qxf4) 18... Nxf4 {[%emt 0:03:56]} 19. Bd5 $2 {[%emt 0:00:37] [#]} (19. Rad1) 19... Nd3 $1 {[%emt 0:08:58] Black is clearly winning.} 20. Qb6 {[%emt 0:01:36]} (20. Qd6 exd5) 20... Bxd5 {[%emt 0:03:21]} 21. exd5 {[%emt 0:01:10]} Nxe1 {[%emt 0:05:05]} 22. Qc6+ {[%emt 0:00:42]} Kf7 {[%emt 0:00:22] And now ...Nd3 would win.} 23. Rxe1 {[%emt 0:00:22]} Rhe8 {[%emt 0:01:13]} 24. d6 {[%emt 0:00:50]} Red8 {[%emt 0:02:34]} 25. Rd1 {[%emt 0:00:33]} Qxb2 {[%emt 0:02:02]} 26. h4 {[%emt 0:00:32]} Qe2 {[%emt 0:00:37]} 27. Rd4 {[%emt 0:00:14]} Qe1+ {[%emt 0:00:13] White did not feel at home in the position after the opening.  Weighted Error Value: White=0.96/Black=0.22 (precise)} 0-1

[Event "Italian-ch Teams-B 2022"]
[Site "Montesilvano"]
[Date "2022.04.19"]
[Round "1.3"]
[White "Bellini, Fabio"]
[Black "Loiacono, Leonardo"]
[Result "1-0"]
[ECO "C47"]
[WhiteElo "2428"]
[BlackElo "2284"]
[Annotator "TA"]
[PlyCount "79"]
[EventDate "2022.04.19"]
[EventType "team-tourn"]
[EventCountry "ITA"]
[SourceTitle "playchess.com"]
[Source "ChessBase"]
[SourceQuality "1"]
[TimeControl "40/5400+30:1800+30"]

{[%evp 17,78,0,0,9,0,0,0,0,12,0,18,0,12,0,37,0,12,0,0,0,0,0,0,7,131,118,127,0,0,0,0,0,0,0,0,0,6,-13,0,-6,0,0,0,0,0,0,240,225,286,280,343,0,0,0,1312,1326,1352,1243,29997,29998,29998,29999,29999]} 1. e4 {[%emt 0:00:02]} e5 {[%emt 0:00:18]} 2. Nf3 {[%emt 0:00:59]} Nc6 {[%emt 0:00:05]} 3. Nc3 {[%emt 0:00:59]} Nf6 {[%emt 0:00:12]} 4. d4 {[%emt 0:01:06]} exd4 {[%emt 0:01:03]} 5. Nxd4 {[%emt 0:00:11]} Bb4 {[%emt 0:00:09]} 6. Nxc6 {[%emt 0:00:13]} bxc6 {[%emt 0:00:05]} 7. Bd3 {[%emt 0:00:23]} d5 {[%emt 0:02:52]} 8. exd5 {[%emt 0:00:08]} cxd5 {[%emt 0:00:06] 8...0-0 is more fashionable.} 9. O-O {[%emt 0:00:21]} O-O {[%emt 0:00:21]} 10. h3 {[%emt 0:00:33] C47: Scotch Four Knights and Four Knights with 4 g3.} c6 {[%emt 0:04:25]} 11. Qf3 {[%emt 0:02:00]} Re8 {[%emt 0:02:45]} 12. Bf4 {[%emt 0:03:13] The position is equal.} Qe7 {[%emt 0:06:33]} 13. Rad1 {[%emt 0:15:03]} Bd7 {[%emt 0:19:00]} 14. Ne2 {[%emt 0:09:48][%cal Bc3e2,Be2g3,Bg3h5][%mdl 32]} Ne4 {[%emt 0:17:48]} 15. a3 {[%emt 0:12:02] [#]} Nc5 $146 {[%emt 0:21:59]} ({Predecessor:} 15... Bc5 16. c4 a5 17. Ng3 Nxg3 18. Qxg3 Qf6 19. cxd5 cxd5 20. Bxh7+ Kxh7 21. Rxd5 Bb5 {½-½ (51) Friedel,J (2547)-Ni,S (2426) Saint Louis 2017}) 16. Ng3 {[%emt 0:17:36]} Nxd3 {[%emt 0:00:12]} 17. Rxd3 {[%emt 0:00:09]} Bc5 {[%emt 0:02:18]} 18. b4 {[%emt 0:03:46]} Bb6 {[%emt 0:00:11]} 19. Bd2 {[%emt 0:02:10]} Qh4 {[%emt 0:03:08]} 20. Bc3 {[%emt 0:08:16]} a5 {[%emt 0:11:20]} (20... f6 $11) 21. Nh5 $1 $16 {[%emt 0:04:39]} d4 {[%emt 0:02:18]} 22. bxa5 {[%emt 0:00:48]} (22. Rfd1 $1 $16 dxc3 23. Rxd7 Bxf2+ 24. Kh2 (24. Qxf2 Qxh5 25. Qd4 axb4 $11)) 22... Ba7 $11 {[%emt 0:02:39]} ({Don't play} 22... Bc5 23. Rfd1 Qg5 24. Bxd4 Bxd4 25. Rxd4 $16) 23. Bd2 {[%emt 0:11:23]} Be6 $1 {[%emt 0:00:21]} 24. Nf4 {[%emt 0:01:38] Inhibits Bd5.} Bc4 {[%emt 0:01:10]} 25. Qxc6 {[%emt 0:00:23]} Bxd3 {[%emt 0:00:34]} 26. cxd3 {[%emt 0:00:10]} Rac8 $132 {[%emt 0:00:52][%mdl 2048] Black is not holding back} 27. Qf3 {[%emt 0:02:56]} (27. Qd7 $5 {[%cal Rd7a7]} Qe7 28. Qxe7 Rxe7 29. Rb1 $11) 27... Rc2 {[%emt 0:00:40]} 28. Re1 {[%emt 0:01:37]} Rxe1+ {[%emt 0:00:31]} 29. Bxe1 {[%emt 0:00:01] Intending Qa8+ and mate.} Bb8 {[%emt 0:00:34]} 30. g3 {[%emt 0:00:33]} Qd8 {[%emt 0:00:15]} 31. Bb4 {[%emt 0:00:22] Nd5 is the strong threat.} h6 $2 {[%emt 0:00:11] [#]} (31... Bxf4 $11 {and Black has nothing to worry.} 32. Qxf4 Rc6) 32. Nd5 $1 $18 {[%emt 0:01:08] aiming for Ne7+.} Bd6 {[%emt 0:00:52] Inhibits Ne7+.} 33. a6 {[%emt 0:00:01]} Bxb4 {[%emt 0:00:29] [#]} 34. axb4 {[%emt 0:00:06][%mdl 4096] Endgame KQR-KQN} ({Inferior is} 34. Nxb4 Rc3 $11) (34. a7 $1 $18) 34... Ra2 $1 $11 {[%emt 0:00:36]} 35. b5 {[%emt 0:00:16]} Qa5 $2 {[%emt 0:00:23][%mdl 8192]} (35... Qe8 $11 36. Kg2 Qe1) 36. Ne7+ $18 {[%emt 0:01:13]} Kf8 {[%emt 0:00:30]} 37. Ng6+ $1 {[%emt 0:01:25]} Ke8 {[%emt 0:00:42]} 38. Qc6+ {[%emt 0:00:33] White mates.} Kd8 {[%emt 0:00:22]} 39. Qd6+ {[%emt 0:00:02]} Kc8 {[%emt 0:00:05]} 40. Ne7# {[%emt 0:00:06] Weighted Error Value: White=0.21 (precise) /Black=0.40} 1-0